[Event "RUS-chT Higher League 2021"]
[Site "Sochi"]
[Date "2021.05.02"]
[Round "2.14"]
[White "Yeletsky, Ivan"]
[Black "Grebnev, Aleksey"]
[Result "1/2-1/2"]
[ECO "E94"]
[WhiteElo "2448"]
[BlackElo "2283"]
[Annotator "NA"]
[PlyCount "115"]
[EventDate "2021.05.01"]
[EventType "team-tourn"]
[EventCountry "RUS"]
[SourceTitle "playchess.com"]
[Source "ChessBase"]
[SourceQuality "1"]
[TimeControl "40/5400+30:1800+30"]

1. d4 {[%emt 0:00:00]} Nf6 {[%emt 0:00:00]} 2. c4 {[%emt 0:00:00]} g6 {[%emt 0:00:00]} 3. Nc3 {[%emt 0:00:00]} Bg7 {[%emt 0:00:00]} 4. e4 {[%emt 0:00:00]} d6 {[%emt 0:00:01]} 5. Nf3 {[%emt 0:00:06]} O-O {[%emt 0:00:07]} 6. Be2 {[%emt 0:00:05]} e5 {[%emt 0:00:35]} 7. O-O {[%emt 0:00:09]} Na6 {[%emt 0:00:10]} 8. Re1 {[%emt 0:00:28]} Bg4 {[%emt 0:00:21]} 9. Be3 {[%emt 0:03:32]} exd4 {[%emt 0:08:36]} 10. Nxd4 {[%emt 0:01:19]} Bxe2 {[%emt 0:00:05]} 11. Qxe2 {[%emt 0:01:50]} Nc5 {[%emt 0:00:25]} 12. f3 {[%emt 0:01:47]} Nfd7 {[%emt 0:00:31]} 13. Rad1 {[%emt 0:01:55]} a5 {[%emt 0:07:21]} 14. Ndb5 {[%emt 0:01:23]} Re8 {[%emt 0:04:41]} 15. Qf2 {[%emt 0:08:02]} b6 {[%emt 0:08:04]} 16. Nd4 {[%emt 0:07:16]} Ne5 {[%emt 0:06:05]} 17. Qe2 {[%emt 0:00:10]} Qd7 {[%emt 0:11:04]} 18. Nd5 {[%emt 0:00:34]} Rf8 {[%emt 0:13:03]} 19. Bh6 {[%emt 0:02:25]} Rae8 {[%emt 0:03:00]} 20. Bxg7 {[%emt 0:07:55]} Kxg7 {[%emt 0:00:08]} 21. b3 {[%emt 0:00:06]} c6 {[%emt 0:07:53]} 22. Ne3 {[%emt 0:01:28]} f6 {[%emt 0:02:52]} 23. Qc2 {[%emt 0:04:49]} Ne6 {[%emt 0:01:59]} 24. Qc3 {[%emt 0:02:08]} Nf7 {[%emt 0:04:18]} 25. Rd2 {[%emt 0:08:51]} Nxd4 {[%emt 0:00:43]} 26. Qxd4 {[%emt 0:00:10]} Rb8 {[%emt 0:00:08]} 27. c5 {[%emt 0:20:02]} bxc5 {[%emt 0:00:35]} 28. Qxc5 {[%emt 0:00:06]} Rb5 {[%emt 0:04:26]} 29. Qc3 {[%emt 0:00:08]} Rd8 {[%emt 0:03:18]} 30. Ng4 {[%emt 0:10:30]} Ne5 {[%emt 0:00:57]} 31. Nxf6 {[%emt 0:00:16]} Kxf6 {[%emt 0:03:41]} 32. f4 {[%emt 0:00:08]} Kg7 {[%emt 0:00:07]} 33. fxe5 {[%emt 0:04:09]} Rxe5 {[%emt 0:00:16]} 34. Kh1 {[%emt 0:00:13]} Kg8 {[%emt 0:03:22]} 35. Red1 {[%emt 0:02:16]} Rxe4 {[%emt 0:02:26]} 36. Rxd6 {[%emt 0:00:12]} Qxd6 {[%emt 0:00:01]} 37. Rxd6 {[%emt 0:00:09]} Rxd6 {[%emt 0:00:04]} 38. h3 {[%emt 0:00:06]} Rd5 {[%emt 0:00:39]} 39. Qxc6 {[%emt 0:00:14]} Ree5 {[%emt 0:00:07]} 40. Kh2 {[%emt 0:00:00]} Kg7 {[%emt 0:00:00]} 41. Qc7+ {[%emt 0:01:22]} Kg8 {[%emt 0:00:40]} 42. Qc8+ {[%emt 0:00:29]} Kg7 {[%emt 0:00:07]} 43. Qc7+ {[%emt 0:00:08]} Kg8 {[%emt 0:00:05]} 44. a3 {[%emt 0:01:51]} h5 {[%emt 0:00:35]} 45. b4 {[%emt 0:01:11]} axb4 {[%emt 0:00:05]} 46. axb4 {[%emt 0:00:05]} Rf5 {[%emt 0:00:31]} 47. Qe7 {[%emt 0:00:50]} Rfe5 {[%emt 0:02:12]} 48. Qf6 {[%emt 0:00:26]} Kh7 {[%emt 0:00:06]} 49. Qf7+ {[%emt 0:00:28]} Kh6 {[%emt 0:00:08]} 50. h4 {[%emt 0:03:40]} g5 {[%emt 0:04:42]} 51. Qf6+ {[%emt 0:01:18]} Kh7 {[%emt 0:00:09]} 52. Qf7+ {[%emt 0:00:07]} Kh6 {[%emt 0:00:04]} 53. hxg5+ {[%emt 0:00:06]} Rxg5 {[%emt 0:00:31]} 54. Qf6+ {[%emt 0:01:25]} Kh7 {[%emt 0:00:12]} 55. Qf7+ {[%emt 0:00:28]} Kh6 {[%emt 0:00:08]} 56. Qf6+ {[%emt 0:00:06]} Kh7 {[%emt 0:00:04]} 57. Qf7+ {[%emt 0:00:05]} Kh6 {[%emt 0:00:07]} 58. Qf6+ {[%emt 0:00:08]} 1/2-1/2

[Event "RUS-chT Higher League 2021"]
[Site "Sochi"]
[Date "2021.05.02"]
[Round "2.15"]
[White "Sharikov, Alexander"]
[Black "Klukin, Kirill"]
[Result "0-1"]
[ECO "A04"]
[WhiteElo "2132"]
[BlackElo "2330"]
[Annotator "NA"]
[PlyCount "62"]
[EventDate "2021.05.01"]
[EventType "team-tourn"]
[EventCountry "RUS"]
[SourceTitle "playchess.com"]
[Source "ChessBase"]
[SourceQuality "1"]
[TimeControl "40/5400+30:1800+30"]

1. Nf3 {[%emt 0:01:19]} c5 {[%emt 0:00:00]} 2. b3 {[%emt 0:01:13]} Nc6 {[%emt 0:05:25]} 3. Bb2 {[%emt 0:00:06]} Nf6 {[%emt 0:00:19]} 4. e3 {[%emt 0:00:26]} g6 {[%emt 0:01:36]} 5. Be2 {[%emt 0:01:32]} Bg7 {[%emt 0:00:19]} 6. O-O {[%emt 0:00:10]} O-O {[%emt 0:00:13]} 7. d3 {[%emt 0:01:11]} b6 {[%emt 0:01:11]} 8. Nbd2 {[%emt 0:00:30]} Bb7 {[%emt 0:00:07]} 9. c4 {[%emt 0:04:34]} Re8 {[%emt 0:01:06]} 10. Ne5 {[%emt 0:04:57]} Nxe5 {[%emt 0:03:15]} 11. Bxe5 {[%emt 0:00:15]} d6 {[%emt 0:00:13]} 12. Bb2 {[%emt 0:00:07]} e5 {[%emt 0:00:22]} 13. e4 {[%emt 0:04:36]} Nd7 {[%emt 0:02:33]} 14. Bf3 {[%emt 0:09:16]} Nf8 {[%emt 0:09:00]} 15. g3 {[%emt 0:00:19]} Ne6 {[%emt 0:05:43]} 16. Bg2 {[%emt 0:00:10]} Bh6 {[%emt 0:03:04]} 17. Nf3 {[%emt 0:04:04]} a6 {[%emt 0:03:48]} 18. a4 {[%emt 0:03:29]} b5 {[%emt 0:02:40]} 19. axb5 {[%emt 0:00:29]} axb5 {[%emt 0:00:05]} 20. Qc2 {[%emt 0:01:16]} Qb6 {[%emt 0:03:06]} 21. Rxa8 {[%emt 0:03:20]} Rxa8 {[%emt 0:00:13]} 22. Ra1 {[%emt 0:00:23]} Rxa1+ {[%emt 0:02:44]} 23. Bxa1 {[%emt 0:00:03]} Qa5 {[%emt 0:00:35]} 24. Qc3 {[%emt 0:04:07]} b4 {[%emt 0:02:35]} 25. Qb2 {[%emt 0:01:04]} Nd4 {[%emt 0:05:50]} 26. Nxd4 {[%emt 0:00:31]} exd4 {[%emt 0:00:04]} 27. f4 {[%emt 0:01:17]} g5 {[%emt 0:01:48]} 28. e5 {[%emt 0:02:36]} Bxg2 {[%emt 0:00:55]} 29. Kxg2 {[%emt 0:00:28]} Qa8+ {[%emt 0:00:13]} 30. Kh3 {[%emt 0:04:38]} dxe5 {[%emt 0:01:51]} 31. fxe5 {[%emt 0:01:21]} Qf3 {[%emt 0:03:39]} 0-1

[Event "RUS-chT Higher League 2021"]
[Site "Sochi"]
[Date "2021.05.02"]
[Round "2.16"]
[White "Galaktionov, Artem"]
[Black "Bobkov, Vadim"]
[Result "0-1"]
[ECO "E10"]
[WhiteElo "2315"]
[BlackElo "2265"]
[Annotator "ChessBase"]
[PlyCount "150"]
[EventDate "2021.05.01"]
[EventType "team-tourn"]
[EventCountry "RUS"]
[SourceTitle "playchess.com"]
[Source "ChessBase"]
[SourceQuality "1"]
[TimeControl "40/5400+30:1800+30"]

1. d4 {[%emt 0:00:00]} Nf6 {[%emt 0:00:00]} 2. Nf3 {[%emt 0:00:00]} e6 {[%emt 0:00:00]} 3. c4 {[%emt 0:00:00]} c5 {[%emt 0:00:12]} 4. d5 {[%emt 0:00:00]} b5 {[%emt 0:00:08]} 5. Bg5 {[%emt 0:08:32]} h6 {[%emt 0:00:47]} 6. Bxf6 {[%emt 0:06:36]} Qxf6 {[%emt 0:00:08]} 7. Qc2 {[%emt 0:00:06]} b4 {[%emt 0:19:20]} 8. e4 {[%emt 0:02:48]} g5 {[%emt 0:02:36]} 9. e5 {[%emt 0:09:19]} Qg7 {[%emt 0:00:55]} 10. g4 {[%emt 0:00:25]} Bb7 {[%emt 0:04:06]} 11. Qb3 {[%emt 0:05:19]} h5 {[%emt 0:35:39]} 12. Rg1 {[%emt 0:02:03]} hxg4 {[%emt 0:00:44]} 13. Rxg4 {[%emt 0:00:08]} Be7 {[%emt 0:00:07]} 14. Nc3 {[%emt 0:01:58]} f5 {[%emt 0:02:31]} 15. exf6 {[%emt 0:02:07]} Qxf6 {[%emt 0:01:45]} 16. Nb5 {[%emt 0:02:57]} Kd8 {[%emt 0:04:13]} 17. Bg2 {[%emt 0:05:48]} exd5 {[%emt 0:13:12]} 18. Nxg5 {[%emt 0:16:16]} a6 {[%emt 0:04:03]} 19. Nc3 {[%emt 0:09:31]} Qf5 {[%emt 0:00:28]} 20. Nxd5 {[%emt 0:06:21]} Qxg4 {[%emt 0:04:11]} 21. Nf7+ {[%emt 0:00:15]} Ke8 {[%emt 0:00:04]} 22. Ne3 {[%emt 0:03:42]} Qf4 {[%emt 0:03:34]} 23. Bxb7 {[%emt 0:00:14]} Rxh2 {[%emt 0:01:05]} 24. O-O-O {[%emt 0:02:46]} Ra7 {[%emt 0:01:03]} 25. Bd5 {[%emt 0:00:35]} Nc6 {[%emt 0:00:14]} 26. Rd2 {[%emt 0:08:49]} Rxf2 {[%emt 0:00:15]} 27. Rxf2 {[%emt 0:01:35]} Qxf2 {[%emt 0:00:01]} 28. Qd3 {[%emt 0:00:01]} Nd4 {[%emt 0:00:55]} 29. Nd1 {[%emt 0:02:17]} Qf4+ {[%emt 0:00:18]} 30. Kb1 {[%emt 0:00:11]} Qf5 {[%emt 0:00:32]} 31. Be4 {[%emt 0:00:01]} Qh5 {[%emt 0:01:33]} 32. Nd6+ {[%emt 0:02:33]} Kd8 {[%emt 0:00:09]} 33. Nf5 {[%emt 0:00:31]} Qe2 {[%emt 0:01:05]} 34. Nxd4 {[%emt 0:00:18]} Qxd3+ {[%emt 0:00:01]} 35. Bxd3 {[%emt 0:00:01]} cxd4 {[%emt 0:00:01]} 36. Kc2 {[%emt 0:00:27]} d5 {[%emt 0:01:29]} 37. cxd5 {[%emt 0:00:06]} Rc7+ {[%emt 0:00:33]} 38. Kb3 {[%emt 0:00:01]} Bh4 {[%emt 0:00:22]} 39. Kxb4 {[%emt 0:01:17]} Rc1 {[%emt 0:00:08]} 40. Be2 {[%emt 0:00:00]} d3 {[%emt 0:00:00]} 41. Bf3 {[%emt 0:00:24]} Be1+ {[%emt 0:06:32]} 42. Ka3 {[%emt 0:04:35]} Kc7 {[%emt 0:01:37]} 43. b3 {[%emt 0:00:27]} a5 {[%emt 0:19:31]} 44. Kb2 {[%emt 0:01:09]} Bd2 {[%emt 0:02:52]} 45. a3 {[%emt 0:00:40]} Rc2+ {[%emt 0:00:29]} 46. Kb1 {[%emt 0:00:06]} Bf4 {[%emt 0:02:35]} 47. Bg4 {[%emt 0:11:52]} Kd6 {[%emt 0:00:30]} 48. Bf3 {[%emt 0:00:01]} Bc1 {[%emt 0:00:49]} 49. Be4 {[%emt 0:03:35]} Bxa3 {[%emt 0:00:06]} 50. Ne3 {[%emt 0:00:01]} Rb2+ {[%emt 0:00:20]} 51. Ka1 {[%emt 0:00:00]} d2 {[%emt 0:00:56]} 52. Bf3 {[%emt 0:01:11]} Rxb3 {[%emt 0:00:34]} 53. Nc4+ {[%emt 0:00:01]} Ke7 {[%emt 0:00:27]} 54. Be2 {[%emt 0:01:10]} Bb4 {[%emt 0:00:11]} 55. Ka2 {[%emt 0:00:29]} Rd3 {[%emt 0:00:52]} 56. d6+ {[%emt 0:00:07]} Bxd6 {[%emt 0:00:23]} 57. Nb2 {[%emt 0:00:26]} Rc3 {[%emt 0:00:27]} 58. Nd1 {[%emt 0:00:01]} Rc1 {[%emt 0:00:08]} 59. Kb3 {[%emt 0:00:05]} Bb4 {[%emt 0:00:06]} 60. Bg4 {[%emt 0:00:10]} Kf6 {[%emt 0:00:05]} 61. Be2 {[%emt 0:00:09]} Ke5 {[%emt 0:00:28]} 62. Bf3 {[%emt 0:00:06]} Kf4 {[%emt 0:00:22]} 63. Be2 {[%emt 0:00:01]} Ke4 {[%emt 0:02:04]} 64. Ka4 {[%emt 0:00:07]} Rb1 {[%emt 0:00:22]} 65. Kb5 {[%emt 0:00:06]} Kd4 {[%emt 0:00:20]} 66. Ka4 {[%emt 0:00:06]} Rxd1 {[%emt 0:00:16]} 67. Bxd1 {[%emt 0:00:04]} Kc3 {[%emt 0:00:03]} 68. Kb5 {[%emt 0:00:24]} Kb2 {[%emt 0:00:05]} 69. Kc4 {[%emt 0:00:03]} Kc1 {[%emt 0:00:04]} 70. Ba4 {[%emt 0:00:07]} d1=Q {[%emt 0:00:04]} 71. Bxd1 {[%emt 0:00:04]} Kxd1 {[%emt 0:00:04]} 72. Kb3 {[%emt 0:00:02]} Kc1 {[%emt 0:00:12]} 73. Ka2 {[%emt 0:00:04]} Kc2 {[%emt 0:00:04]} 74. Ka1 {[%emt 0:00:01]} Kb3 {[%emt 0:00:06]} 75. Kb1 {[%emt 0:00:04]} Bc3 {[%emt 0:00:04]} 0-1

[Event "RUS-chT Higher League 2021"]
[Site "Sochi"]
[Date "2021.05.03"]
[Round "3.3"]
[White "Drygalov, Andrey"]
[Black "Pogromsky, Mikhail"]
[Result "1/2-1/2"]
[ECO "B03"]
[WhiteElo "2500"]
[BlackElo "2422"]
[Annotator "RC"]
[PlyCount "119"]
[EventDate "2021.05.01"]
[EventType "team-tourn"]
[EventCountry "RUS"]
[SourceTitle "playchess.com"]
[Source "ChessBase"]
[SourceQuality "1"]
[TimeControl "40/5400+30:1800+30"]

1. e4 {[%emt 0:00:00]} Nf6 {[%emt 0:00:01]} 2. e5 {[%emt 0:00:00]} Nd5 {[%emt 0:00:05]} 3. d4 {[%emt 0:00:00]} d6 {[%emt 0:00:07]} 4. c4 {[%emt 0:00:00]} Nb6 {[%emt 0:00:03]} 5. exd6 {[%emt 0:00:00]} exd6 {[%emt 0:00:08]} 6. Nc3 {[%emt 0:00:00]} Be7 {[%emt 0:01:14]} 7. Bd3 {[%emt 0:00:01]} O-O {[%emt 0:01:08]} 8. Nge2 {[%emt 0:00:23]} Na6 {[%emt 0:03:44]} 9. O-O {[%emt 0:01:20]} c6 {[%emt 0:00:16]} 10. b3 {[%emt 0:04:09]} Nb4 {[%emt 0:00:38]} 11. Bb1 {[%emt 0:01:52]} d5 {[%emt 0:00:40]} 12. c5 {[%emt 0:03:32]} Nd7 {[%emt 0:00:05]} 13. a3 {[%emt 0:08:24]} Na6 {[%emt 0:00:06]} 14. Be3 {[%emt 0:02:50]} Re8 {[%emt 0:11:00]} 15. Qd2 {[%emt 0:06:39]} Nc7 {[%emt 0:05:25]} 16. b4 {[%emt 0:01:15]} g6 {[%emt 0:28:03]} 17. Bc2 {[%emt 0:06:39]} Nf6 {[%emt 0:04:39]} 18. f3 {[%emt 0:01:18]} Nh5 {[%emt 0:00:41]} 19. g4 {[%emt 0:38:29]} Ng7 {[%emt 0:02:05]} 20. Ng3 {[%emt 0:00:04]} b6 {[%emt 0:16:48]} 21. Rad1 {[%emt 0:06:10]} bxc5 {[%emt 0:05:12]} 22. dxc5 {[%emt 0:03:24]} a5 {[%emt 0:00:53]} 23. Nce2 {[%emt 0:04:03]} axb4 {[%emt 0:00:46]} 24. axb4 {[%emt 0:00:05]} Qd7 {[%emt 0:08:31]} 25. Nd4 {[%emt 0:01:02]} Ba6 {[%emt 0:01:10]} 26. Ba4 {[%emt 0:01:43]} Bb7 {[%emt 0:00:24]} 27. Bb3 {[%emt 0:00:54]} Ba6 {[%emt 0:00:55]} 28. Ba4 {[%emt 0:00:07]} Bb7 {[%emt 0:00:04]} 29. Bb3 {[%emt 0:00:22]} Ba6 {[%emt 0:00:04]} 30. Rfe1 {[%emt 0:00:07]} Bf6 {[%emt 0:02:23]} 31. Bf2 {[%emt 0:05:22]} Rxe1+ {[%emt 0:03:18]} 32. Rxe1 {[%emt 0:00:04]} Re8 {[%emt 0:00:27]} 33. Rxe8+ {[%emt 0:00:27]} Qxe8 {[%emt 0:00:30]} 34. Ba4 {[%emt 0:00:11]} Bb7 {[%emt 0:00:37]} 35. Qf4 {[%emt 0:01:06]} Be5 {[%emt 0:02:36]} 36. Qe3 {[%emt 0:00:31]} f6 {[%emt 0:01:06]} 37. f4 {[%emt 0:00:24]} Bxd4 {[%emt 0:00:04]} 38. Qxd4 {[%emt 0:01:09]} Qe6 {[%emt 0:01:11]} 39. h3 {[%emt 0:00:23]} Ba6 {[%emt 0:00:24]} 40. Bc2 {[%emt 0:00:00]} Kf7 {[%emt 0:00:00]} 41. Qa1 {[%emt 0:10:27]} Bb5 {[%emt 0:05:45]} 42. Bd4 {[%emt 0:02:43]} Qe7 {[%emt 0:03:27]} 43. f5 {[%emt 0:03:00]} g5 {[%emt 0:04:25]} 44. Kf2 {[%emt 0:06:46]} Bc4 {[%emt 0:04:44]} 45. Qe1 {[%emt 0:03:05]} Qd8 {[%emt 0:05:16]} 46. Ba4 {[%emt 0:04:24]} Nb5 {[%emt 0:02:00]} 47. Bxb5 {[%emt 0:00:36]} Bxb5 {[%emt 0:00:01]} 48. Nh5 {[%emt 0:01:47]} Nxh5 {[%emt 0:04:09]} 49. Qe6+ {[%emt 0:00:28]} Kg7 {[%emt 0:00:03]} 50. gxh5 {[%emt 0:00:04]} h6 {[%emt 0:00:02]} 51. Kg3 {[%emt 0:04:01]} Qb8+ {[%emt 0:02:28]} 52. Kg2 {[%emt 0:01:04]} Qf8 {[%emt 0:00:43]} 53. h4 {[%emt 0:00:06]} gxh4 {[%emt 0:00:34]} 54. Kh3 {[%emt 0:02:30]} Qf7 {[%emt 0:01:52]} 55. Qd6 {[%emt 0:00:28]} Qf8 {[%emt 0:00:49]} 56. Qf4 {[%emt 0:00:57]} Qe8 {[%emt 0:00:45]} 57. Qxh4 {[%emt 0:00:51]} Bf1+ {[%emt 0:00:31]} 58. Kh2 {[%emt 0:00:29]} Qe2+ {[%emt 0:00:32]} 59. Bf2 {[%emt 0:00:16]} Qf3 {[%emt 0:00:32]} 60. Qg3+ {[%emt 0:00:14]} 1/2-1/2

[Event "RUS-chT Higher League 2021"]
[Site "Sochi"]
[Date "2021.05.03"]
[Round "3.4"]
[White "Matveev, Vladimir"]
[Black "Radzhabov, Rodion"]
[Result "1-0"]
[ECO "D26"]
[WhiteElo "2368"]
[BlackElo "2352"]
[Annotator "NA"]
[PlyCount "45"]
[EventDate "2021.05.01"]
[EventType "team-tourn"]
[EventCountry "RUS"]
[SourceTitle "playchess.com"]
[Source "ChessBase"]
[SourceQuality "1"]
[TimeControl "40/5400+30:1800+30"]

1. d4 {[%emt 0:00:00]} d5 {[%emt 0:00:00]} 2. c4 {[%emt 0:00:00]} e6 {[%emt 0:00:00]} 3. Nf3 {[%emt 0:00:00]} dxc4 {[%emt 0:00:00]} 4. e3 {[%emt 0:00:00]} Nf6 {[%emt 0:00:00]} 5. Bxc4 {[%emt 0:00:00]} c5 {[%emt 0:00:09]} 6. Qe2 {[%emt 0:02:39]} cxd4 {[%emt 0:04:47]} 7. exd4 {[%emt 0:04:59]} a6 {[%emt 0:04:21]} 8. O-O {[%emt 0:07:52]} b5 {[%emt 0:07:16]} 9. Bb3 {[%emt 0:07:55]} Bb7 {[%emt 0:03:45]} 10. Ne5 {[%emt 0:12:54]} Bd5 {[%emt 0:42:02]} 11. Nc3 {[%emt 0:08:45]} Bxb3 {[%emt 0:10:11]} 12. axb3 {[%emt 0:00:30]} b4 {[%emt 0:07:06]} 13. Qf3 {[%emt 0:06:47]} Nbd7 {[%emt 0:06:36]} 14. Nb5 {[%emt 0:02:41]} Rb8 {[%emt 0:09:07]} 15. Nc6 {[%emt 0:06:34]} Qb6 {[%emt 0:00:05]} 16. Nxb8 {[%emt 0:01:42]} Qxb8 {[%emt 0:00:04]} 17. Bf4 {[%emt 0:03:21]} Qxb5 {[%emt 0:00:13]} 18. Qa8+ {[%emt 0:00:04]} Ke7 {[%emt 0:01:16]} 19. Bc7 {[%emt 0:00:07]} e5 {[%emt 0:01:52]} 20. Rxa6 {[%emt 0:00:11]} Nb8 {[%emt 0:00:38]} 21. Bxb8 {[%emt 0:01:51]} Nd7 {[%emt 0:00:24]} 22. Bd6+ {[%emt 0:00:57]} Ke6 {[%emt 0:00:19]} 23. Bxf8+ {[%emt 0:00:11]} 1-0

[Event "RUS-chT Higher League 2021"]
[Site "Sochi"]
[Date "2021.05.03"]
[Round "3.5"]
[White "Sveshnikov, Evgeny"]
[Black "Mokshanov, Alexey"]
[Result "0-1"]
[ECO "C13"]
[WhiteElo "2478"]
[BlackElo "2448"]
[Annotator "ChessBase"]
[PlyCount "62"]
[EventDate "2021.05.01"]
[EventType "team-tourn"]
[EventCountry "RUS"]
[SourceTitle "playchess.com"]
[Source "ChessBase"]
[SourceQuality "1"]
[TimeControl "40/5400+30:1800+30"]

1. e4 {[%emt 0:00:00]} e6 {[%emt 0:00:00]} 2. d4 {[%emt 0:00:10]} d5 {[%emt 0:00:00]} 3. Nc3 {[%emt 0:00:10]} Nf6 {[%emt 0:00:00]} 4. Bg5 {[%emt 0:00:11]} Be7 {[%emt 0:00:01]} 5. e5 {[%emt 0:00:10]} Nfd7 {[%emt 0:00:05]} 6. h4 {[%emt 0:00:08]} Nc6 {[%emt 0:00:31]} 7. Nf3 {[%emt 0:05:16]} h6 {[%emt 0:07:15]} 8. Be3 {[%emt 0:06:38]} Na5 {[%emt 0:05:46]} 9. Qd2 {[%emt 0:14:39]} c5 {[%emt 0:04:36]} 10. dxc5 {[%emt 0:03:06]} Nc6 {[%emt 0:04:13]} 11. Bb5 {[%emt 0:05:44]} Bxc5 {[%emt 0:02:19]} 12. O-O-O {[%emt 0:02:40]} Qb6 {[%emt 0:05:35]} 13. Bxc5 {[%emt 0:07:07]} Nxc5 {[%emt 0:02:31]} 14. Rh3 {[%emt 0:17:17]} Bd7 {[%emt 0:07:26]} 15. Rg3 {[%emt 0:02:16]} Rg8 {[%emt 0:03:20]} 16. Bxc6 {[%emt 0:06:00]} bxc6 {[%emt 0:01:21]} 17. Qxh6 {[%emt 0:04:12]} gxh6 {[%emt 0:02:07]} 18. Rxg8+ {[%emt 0:00:42]} Ke7 {[%emt 0:00:02]} 19. Rxa8 {[%emt 0:00:10]} Be8 {[%emt 0:00:17]} 20. Nd4 {[%emt 0:07:26]} Qb7 {[%emt 0:01:38]} 21. Rxe8+ {[%emt 0:02:11]} Kxe8 {[%emt 0:00:02]} 22. f4 {[%emt 0:00:17]} Nd7 {[%emt 0:04:29]} 23. f5 {[%emt 0:06:50]} Nxe5 {[%emt 0:00:41]} 24. fxe6 {[%emt 0:00:17]} fxe6 {[%emt 0:00:40]} 25. Re1 {[%emt 0:02:23]} Qf7 {[%emt 0:01:13]} 26. g3 {[%emt 0:03:20]} Qf6 {[%emt 0:02:26]} 27. Nd1 {[%emt 0:03:03]} Kd7 {[%emt 0:01:57]} 28. Ne2 {[%emt 0:00:23]} Qf3 {[%emt 0:01:54]} 29. b3 {[%emt 0:00:27]} Qe4 {[%emt 0:01:34]} 30. Ndc3 {[%emt 0:00:33]} Qe3+ {[%emt 0:00:15]} 31. Kb2 {[%emt 0:00:25]} Nd3+ {[%emt 0:00:17]} 0-1

[Event "RUS-chT Higher League 2021"]
[Site "Sochi"]
[Date "2021.05.03"]
[Round "3.6"]
[White "Grebnev, Aleksey"]
[Black "Balashov, Yuri S"]
[Result "1-0"]
[ECO "C24"]
[WhiteElo "2283"]
[BlackElo "2461"]
[Annotator "ChessBase"]
[PlyCount "95"]
[EventDate "2021.05.01"]
[EventType "team-tourn"]
[EventCountry "RUS"]
[SourceTitle "playchess.com"]
[Source "ChessBase"]
[SourceQuality "1"]
[TimeControl "40/5400+30:1800+30"]

1. e4 {[%emt 0:00:00]} e5 {[%emt 0:00:00]} 2. Bc4 {[%emt 0:00:00]} Nf6 {[%emt 0:00:01]} 3. d3 {[%emt 0:00:00]} c6 {[%emt 0:00:16]} 4. Nf3 {[%emt 0:00:00]} Be7 {[%emt 0:00:18]} 5. O-O {[%emt 0:00:19]} d6 {[%emt 0:00:10]} 6. Re1 {[%emt 0:01:36]} O-O {[%emt 0:00:11]} 7. Nbd2 {[%emt 0:00:31]} Nbd7 {[%emt 0:00:39]} 8. c3 {[%emt 0:01:03]} Qc7 {[%emt 0:08:44]} 9. a4 {[%emt 0:02:26]} d5 {[%emt 0:03:26]} 10. Bb3 {[%emt 0:04:56]} Nc5 {[%emt 0:10:20]} 11. Bc2 {[%emt 0:02:38]} dxe4 {[%emt 0:07:09]} 12. dxe4 {[%emt 0:02:33]} b5 {[%emt 0:01:19]} 13. b4 {[%emt 0:05:46]} Ne6 {[%emt 0:02:04]} 14. Nf1 {[%emt 0:03:31]} Rd8 {[%emt 0:01:12]} 15. Qe2 {[%emt 0:00:51]} a6 {[%emt 0:01:40]} 16. Ng3 {[%emt 0:02:11]} g6 {[%emt 0:02:55]} 17. h3 {[%emt 0:01:06]} Rb8 {[%emt 0:04:19]} 18. Rd1 {[%emt 0:02:39]} Rxd1+ {[%emt 0:01:36]} 19. Bxd1 {[%emt 0:00:39]} c5 {[%emt 0:05:55]} 20. axb5 {[%emt 0:01:42]} Rxb5 {[%emt 0:02:08]} 21. Ba4 {[%emt 0:08:01]} Rb8 {[%emt 0:01:21]} 22. b5 {[%emt 0:01:24]} c4 {[%emt 0:08:34]} 23. bxa6 {[%emt 0:01:15]} Bxa6 {[%emt 0:00:12]} 24. Bc2 {[%emt 0:01:01]} Bb7 {[%emt 0:02:37]} 25. Be3 {[%emt 0:03:38]} Rc8 {[%emt 0:03:09]} 26. Nd2 {[%emt 0:00:48]} Ne8 {[%emt 0:02:29]} 27. Ngf1 {[%emt 0:01:54]} Nd6 {[%emt 0:00:35]} 28. Ra4 {[%emt 0:04:33]} Ra8 {[%emt 0:02:42]} 29. Rxa8+ {[%emt 0:00:52]} Bxa8 {[%emt 0:00:06]} 30. Bh6 {[%emt 0:04:01]} Nf4 {[%emt 0:04:01]} 31. Qg4 {[%emt 0:07:01]} Ne6 {[%emt 0:08:04]} 32. Qe2 {[%emt 0:01:30]} Bf8 {[%emt 0:00:46]} 33. Bxf8 {[%emt 0:00:40]} Kxf8 {[%emt 0:01:38]} 34. Ne3 {[%emt 0:00:21]} Bb7 {[%emt 0:01:50]} 35. Ng4 {[%emt 0:06:04]} Qc5 {[%emt 0:00:42]} 36. Nf3 {[%emt 0:02:26]} Nf4 {[%emt 0:01:33]} 37. Qd2 {[%emt 0:00:38]} Nd3 {[%emt 0:04:14]} 38. Bxd3 {[%emt 0:01:45]} cxd3 {[%emt 0:00:06]} 39. Nfxe5 {[%emt 0:00:40]} Qb5 {[%emt 0:01:06]} 40. Nxd3 {[%emt 0:00:00]} Nxe4 {[%emt 0:00:00]} 41. Qe3 {[%emt 0:09:15]} Nxc3 {[%emt 0:07:26]} 42. Nc5 {[%emt 0:00:29]} Nd5 {[%emt 0:05:00]} 43. Qd4 {[%emt 0:00:42]} Bc6 {[%emt 0:02:49]} 44. Qh8+ {[%emt 0:01:30]} Ke7 {[%emt 0:00:14]} 45. Qe5+ {[%emt 0:00:06]} Kf8 {[%emt 0:05:59]} 46. Qd6+ {[%emt 0:00:50]} Ke8 {[%emt 0:09:35]} 47. Ne5 {[%emt 0:04:07]} Ba8 {[%emt 0:02:17]} 48. Ncd7 {[%emt 0:01:26]} 1-0